Cogmind - Beta 13 @@@ ROGUE MODE // 2024.05.17 @ 20:55:51 Player: Waste Result: Destroyed by 8R-AWN with 8R-AWN's Boregun Performance ------------- Evolutions (0) 0 Regions Visited (3) 600 Robots Destroyed (22) 110 Value Destroyed (542) 542 Prototype IDs (23) 460 Alien Tech Used (0) 0 Bonus (360) 360 TOTAL SCORE: 2072 Bonus ------- Follower Combat Kills 60 Aligned with FarCom 300 Cogmind --------- Core Integrity 0/250 Matter 419/450 Energy 100/100 System Corruption 0% Temperature Cool (0) Movement Treading (320) Ox2 Location -10/Exiles Parts ------- > --- POWER (1) -------- (None) > --- PROPULSION (2) --- Light Treads Light Treads > --- UTILITY (2) ------ Huge Storage Unit Large Matter Pod > --- WEAPON (2) ------- Light Assault Rifle Light Assault Rifle > --- INVENTORY (25) --- Light Treads Aluminum Leg Compact Wheel Medium Storage Unit Large Storage Unit Small Laser Small Laser Beam Cannon Beam Cannon Light Assault Rifle Light Assault Rifle Light Assault Rifle Rocket Launcher Rocket Launcher Mini Grenade Launcher Mini Grenade Launcher Peak State ------------ > --- POWER ------------ Light Ion Engine > --- PROPULSION ------- Aluminum Leg Compact Wheel > --- UTILITY ---------- Improved Heat Sink Huge Storage Unit > --- WEAPON ----------- Small Laser Mini Grenade Launcher > --- INVENTORY -------- Light Treads Light Treads Light Treads Compact Wheel Medium Storage Unit Large Storage Unit Small Laser Beam Cannon Beam Cannon Assault Rifle Light Assault Rifle Light Assault Rifle Light Assault Rifle Light Assault Rifle Light Assault Rifle Rocket Launcher Rocket Launcher Mini Grenade Launcher [Rating: 12] Favorites ----------- Power Light Ion Engine Engine Light Ion Engine Propulsion Aluminum Leg Treads Light Treads Leg Aluminum Leg Wheel Compact Wheel Utility Huge Storage Unit Device Improved Heat Sink Storage Huge Storage Unit Weapon Small Laser Energy Gun Small Laser Energy Cannon Beam Cannon Ballistic Gun Assault Rifle Launcher Mini Grenade Launcher Build | -11 -10 -10 -10 ------- Run | Yrd Mat Min Exi Slots Evolved . | . . . . Power . | . . . . Propulsion . | . . . . Utility . | . . . . Weapon . | . . . . Parts Attached 22 | . 12 1 9 Power 1 | . 1 . . Engine 1 | . 1 . . Core . | . . . . Reactor . | . . . . Propulsion 7 | . 3 1 3 Treads 2 | . . . 2 Leg 3 | . 2 . 1 Wheel 2 | . 1 1 . Hover . | . . . . Flight . | . . . . Utility 5 | . 4 . 1 Device 1 | . 1 . . Storage 4 | . 3 . 1 Processor . | . . . . Hackware . | . . . . Protection . | . . . . Artifact . | . . . . Weapon 9 | . 4 . 5 Energy Gun 1 | . 1 . . Energy Cannon 2 | . 2 . . Ballistic Gun 4 | . . . 4 Ballistic Cannon . | . . . . Launcher 2 | . 1 . 1 Special Weapon . | . . . . Impact Weapon . | . . . . Slashing Weapon . | . . . . Piercing Weapon . | . . . . Special Melee Weapon . | . . . . Unidentified Prototypes . | . . . . Parts Lost 6 | . 2 3 1 Power 2 | . 1 1 . Propulsion 2 | . 1 1 . Utility 1 | . . 1 . Weapon 1 | . . . 1 Highest Loss Streak 2 | . 1 2 1 To Critical Strikes . | . . . . Average Slot Usage (%) 79 | . 91 60 61 Engine 8 | . 14 . . Leg 12 | . 20 . 1 Wheel 5 | . . 15 12 Device 8 | . 13 2 . Storage 14 | . 14 14 16 Energy Gun 13 | . 14 14 11 Energy Cannon 4 | . 6 . . Ballistic Gun 1 | . . . 4 Launcher 8 | . 6 14 12 Naked Turns . | . . . . Heaviest Build 88 | 13 88 83 86 Greatest Support 32 | 20 20 32 16 Greatest Overweight (x) 8 | . 8 5 5 Average Overweight (x) 4 | . 3 4 5 Largest Inventory Capacity 25 | . 25 25 25 Average Capacity 23 | . 21 25 25 Most Carried 23 | . 19 18 23 Average Carried 17 | . 16 18 20 Final Capacity 25 | 8 25 25 25 Final Carried 18 | 6 18 18 16 Class Distribution -------------------- 100% | Mutant Dominant Class ---------------- Mutant | -10/Materials Mutant | -10/Mines Mutant | -10/Exiles Resources | -11 -10 -10 -10 ----------- Run | Yrd Mat Min Exi Matter Collected 561 | 200 146 25 190 Remotely . | . . . . Salvage Created 665 | . 493 164 8 Parts 35 | . 29 6 . Haulers Intercepted 1 | . 1 . . Recyclers Shooed . | . . . . Parts Field Recycled . | . . . . Retrieved Matter . | . . . . Parts Self-Destructed . | . . . . Prevented . | . . . . Kills | -11 -10 -10 -10 ------- Run | Yrd Mat Min Exi Combat Hostiles Destroyed 21 | . 14 4 3 Guns 9 | . 9 . . Cannons 5 | . 5 . . AOE 7 | . . 4 3 Classes Destroyed 7 | . 5 1 1 Worker 1 | . 1 . . Hauler 1 | . 1 . . Recycler 1 | . . 1 . Watcher 1 | . 1 . . Swarmer 6 | . 6 . . Grunt 12 | . 8 4 . Assembled 3 | . . . 3 Best Kill Streak 4 | . 4 3 3 Combat Bots Only 4 | . 4 2 3 Max Kills in Single Turn 2 | . 1 1 2 Gunslinging . | . . . . Exploded 2 | . . 1 2 Melee . | . . . . Uniques/NPCs Destroyed . | . . . . Combat | -11 -10 -10 -10 -------- Run | Yrd Mat Min Exi Hostile Shots Fired 112 | . 81 5 26 Missed 26 | . 21 1 4 Damage Taken 1193 | . 652 190 351 Core 256 | . 130 56 70 Absorbed by Shields . | . . . . Core Remaining (%) 100 | 100 . . . Volleys Fired 66 | . 46 6 14 Largest 2 | . 2 1 2 Hottest 100 | . 100 30 40 Shots Fired 121 | . 90 6 25 Gun 86 | . 64 . 22 Cannon 25 | . 25 . . Launcher 10 | . 1 6 3 Special . | . . . . Kinetic 34 | . 12 . 22 Thermal 77 | . 77 . . Explosive 10 | . 1 6 3 Electromagnetic . | . . . . Robot Hit Streak 10 | . 6 3 10 Robot Miss Streak 2 | . 2 1 2 Penetration Max . | . . . . Secondary Targets 1 | . 1 . . Max Gunslinging Chain 1 | . 1 . . Shots Hit Robots 76 | . 55 4 17 Core Hits 38 | . 24 7 7 Critical Kills . | . . . . Critical Parts Destroyed . | . . . . Critical Strikes . | . . . . Melee Attacks . | . . . . Impact . | . . . . Slashing . | . . . . Piercing . | . . . . Sneak Attacks . | . . . . Combat Hostiles . | . . . . Follow-up Attacks . | . . . . Damage Inflicted 1552 | . 824 427 301 Guns 598 | . 461 . 137 Cannons 314 | . 314 . . Explosions 640 | . 49 427 164 Melee . | . . . . Ramming . | . . . . Kinetic 271 | . 134 . 137 Thermal 641 | . 641 . . Explosive 640 | . 49 427 164 Electromagnetic . | . . . . Impact . | . . . . Slashing . | . . . . Piercing . | . . . . Highest Corruption . | . . . . Average Corruption . | . . . . Corruption Purged . | . . . . Corruption Blocked . | . . . . Overload Shots . | . . . . Overflow Damage 26 | . . 26 . Projectiles . | . . . . Explosions 26 | . . 26 . Melee . | . . . . Knockbacks . | . . . . Impact . | . . . . Kinetic . | . . . . Secondary . | . . . . Self-Inflicted Damage 167 | . 36 131 . Shots 6 | . 1 5 . Rammed . | . . . . Targets Rammed . | . . . . Kicked . | . . . . Crushed . | . . . . Highest Temperature 162 | . 162 . . Average Temperature 57 | . 57 . . Received Heat Transfer 300 | . 267 33 . Siege Activations . | . . . . Robots Corrupted . | . . . . Combat Hostiles . | . . . . Parts Fried . | . . . . Impact Corruptions . | . . . . Robots Melted . | . . . . Combat Hostiles . | . . . . Parts Melted 1 | . 1 . . Heat Transferred 1416 | . 1416 . . Parts Sabotaged . | . . . . Parts Stolen . | . . . . Parts Stripped . | . . . . Power Chain Reactions . | . . . . Alert | -11 -10 -10 -10 ------- Run | Yrd Mat Min Exi Peak Influence 321 | . 321 184 . Initial . | . . . . Average 63 | . 60 71 . Maximum Alert Level 1 | . 1 . . Low Security (%) 95 | . 93 100 . Level 1 4 | . 6 . . Level 2 . | . . . . Level 3 . | . . . . Level 4 . | . . . . Level 5 . | . . . . High Security . | . . . . Max Security . | . . . . Squads Dispatched 3 | . 3 . . Investigation 1 | . 1 . . Extermination . | . . . . Reinforcement 2 | . 2 . . Assault . | . . . . Garrison . | . . . . Intercept . | . . . . Searches Triggered . | . . . . Construction Impeded . | . . . . Haulers Reinforced . | . . . . Active Scanning Responses . | . . . . Cargo Convoy Interrupts . | . . . . Stealth | -11 -10 -10 -10 --------- Run | Yrd Mat Min Exi Distress Signals . | . . . . Communications Jammed . | . . . . Distress Signals . | . . . . Times Spotted 26 | . 19 3 4 Peak Tracking Total 10 | . 3 2 10 Tactical Retreats 2 | . 2 . . Traps | -11 -10 -10 -10 ------- Run | Yrd Mat Min Exi Traps Triggered . | . . . . Indirectly . | . . . . Trap Hack Attempts . | . . . . Triggered . | . . . . Disarmed . | . . . . Reprogrammed . | . . . . Reused . | . . . . Traps Extracted . | . . . . Installed . | . . . . Triggered . | . . . . Machines | -11 -10 -10 -10 ---------- Run | Yrd Mat Min Exi Machines Disabled 4 | . . 1 3 Max in Single Turn 1 | . . 1 1 Machines Repaired . | . . . . Machines Dismantled . | . . . . Machines Sabotaged . | . . . . Overloaded Fab Kills . | . . . . Hacking | -11 -10 -10 -10 --------- Run | Yrd Mat Min Exi Machines Accessed 5 | . 4 . 1 Terminals 4 | . 4 . . Fabricators . | . . . . Repair Stations . | . . . . Recycling Units . | . . . . Scanalyzers . | . . . . Garrison Access . | . . . . Total Hacks 7 | . 6 . 1 Successful 1 | . . . 1 Failed 6 | . 6 . . Catastrophic 2 | . 2 . . Database Lockouts . | . . . . Manual 7 | . 6 . 1 Terminals 6 | . 6 . . Fabricators . | . . . . Repair Stations . | . . . . Recycling Units . | . . . . Scanalyzers . | . . . . Garrison Access . | . . . . Terminal Hacks 1 | . . . 1 Derelict Proto ID Bank 1 | . . . 1 Fabricator Hacks . | . . . . Repair Station Hacks . | . . . . Recycling Unit Hacks . | . . . . Scanalyzer . | . . . . Garrison Access Hacks . | . . . . Unauthorized Hacks . | . . . . Terminals . | . . . . Fabricators . | . . . . Repair Stations . | . . . . Recycling Units . | . . . . Scanalyzers . | . . . . Garrison Access . | . . . . Data Cores Recovered . | . . . . Used . | . . . . Hacking Detections 3 | . 3 . . Full Trace Events 1 | . 1 . . Feedback Events . | . . . . Feedback Blocked . | . . . . Robot Schematics Acquired . | . . . . Robots Built . | . . . . Authchips . | . . . . Time . | . . . . Total Robot Build Rating . | . . . . Part Schematics Acquired . | . . . . Parts Built . | . . . . Authchips . | . . . . Time . | . . . . Total Part Build Rating . | . . . . Parts Repaired . | . . . . Time . | . . . . Parts Recycled . | . . . . Recycled Matter . | . . . . Retrieved Matter . | . . . . Retrieved Components . | . . . . Parts Scanalyzed . | . . . . Part Schematics Acquired . | . . . . Parts Damaged . | . . . . Bothacking | -11 -10 -10 -10 ------------ Run | Yrd Mat Min Exi Used RIF Installer . | . . . . Robots Hacked . | . . . . Non-combat . | . . . . Combat . | . . . . Robot Hacks Applied . | . . . . Relay Couplers Released . | . . . . Fabnet Peak Effective % . | . . . . Robots Rewired . | . . . . Allies Hacked . | . . . . Hacks Repelled . | . . . . Allies | -11 -10 -10 -10 -------- Run | Yrd Mat Min Exi Total Allies 4 | . . 4 . Largest Group 4 | . . 4 3 Highest-Rated Group 71 | . . 71 40 Highest-Rated Ally 31 | . . 31 16 Total Orders . | . . . . Ally Attacks 13 | . . 3 10 Total Damage 103 | . . 62 41 Kills 3 | . . 2 1 Allies Corrupted . | . . . . Allies Melted . | . . . . Intel | -11 -10 -10 -10 ------- Run | Yrd Mat Min Exi Robot Analysis Total . | . . . . Derelict Logs Recovered 1 | . . 1 . Drone Launches . | . . . . Drone Recoveries . | . . . . Exploration | -11 -10 -10 -10 ------------- Run | Yrd Mat Min Exi Turns Passed 3733 | . 2296 741 696 Spaces Moved 1338 | 1 572 423 342 Core . | . . . . Treads . | . . . . Legs 572 | 1 571 . . Wheels 766 | . 1 423 342 Hover . | . . . . Flight . | . . . . Fastest Speed 120 | 120 120 130 175 Average Speed 255 | 120 369 167 175 Slowest Speed 680 | 120 680 175 175 Overloaded Moves . | . . . . Propulsion Burnouts . | . . . . Robots Hopped . | . . . . Cave-ins Triggered . | . . . . Exploration Rate (%) 60 | 2 80 91 70 Regions Visited 3 Branch Regions 2 Pre-discovered Areas . | . . . . Known Exits Taken . | . . . . Unknown Exits Taken 3 | 1 1 1 . Scrap Searched 1 | . . 1 . Spaces Dug 13 | . 13 . . Terrain Destroyed 67 | . 13 35 19 Melee . | . . . . Projectile . | . . . . AOE 67 | . 13 35 19 Terrain Rammed . | . . . . Walls Destroyed . | . . . . Machines Disabled . | . . . . Actions | -11 -10 -10 -10 --------- Run | Yrd Mat Min Exi Total 1529 | . 661 449 419 Wait 82 | . 17 20 45 Move 1335 | . 571 422 342 Hop . | . . . . Pick Up 17 | . 12 . 5 Fast Attach 1 | . 1 . . Attach 5 | . 2 . 3 Detach . | . . . . Swap 16 | . 9 1 6 Drop 7 | . 3 . 4 Fire 66 | . 46 6 14 Melee . | . . . . Ram . | . . . . Kick . | . . . . Crush . | . . . . Escape Stasis . | . . . . Rewire . | . . . . Trap . | . . . . Miscellaneous . | . . . . Route ------- -11/Scrapyard -10/Materials (discovered 5 exits: [*Mat x3] / [*Min x2]) -10/Mines (discovered 3 exits: [*Mat x2] / *Exi) -10/Exiles (discovered 1 exit: [*Min]) History --------- Turn | Location | Event 1 | -11/Scrapyard | Discovered new exit (range 0) 1 | -11/Scrapyard | Entered Materials 241 | -10/Materials | Discovered new exit (range 12) 316 | -10/Materials | Build established: Mutant 409 | -10/Materials | Discovered new exit (range 4) 492 | -10/Materials | Discovered new exit (range 11) 1243 | -10/Materials | Core integrity fell below 50% 1256 | -10/Materials | Discovered new exit (range 7) 1725 | -10/Materials | Discovered new exit (range 8) 2297 | -10/Materials | Entered Mines 2492 | -10/Mines | Received a Mining Laser from a helpful Derelict 2583 | -10/Mines | Learned location of 2 exits from Materials 2595 | -10/Mines | Assisted by bots powering up and referring to "LRC-V3" 2655 | -10/Mines | Discovered new exit (range 10) 2703 | -10/Mines | YI-UF0 nonchalantly dropped a Grenade Launcher on the ground 2704 | -10/Mines | Discovered new exit (range 8) 3012 | -10/Mines | Deemed a non-threat by the Exiles lab entrance 3012 | -10/Mines | Discovered new exit (range 5) 3038 | -10/Mines | Entered Exiles 3038 | -10/Exiles | Accompanied by 3 allies 3087 | -10/Exiles | Met 8R-AWN 3115 | -10/Exiles | Met EX-HEX 3167 | -10/Exiles | Met EX-BIN 3187 | -10/Exiles | Aligned with FarCom system 3188 | -10/Exiles | Given EX-Vault access code 3230 | -10/Exiles | Opened EX-Vault 3274 | -10/Exiles | Warned to stay clear of 0b10 Research branches 3325 | -10/Exiles | Met EX-DEC 3504 | -10/Exiles | Discovered new exit (range 14) 3620 | -10/Exiles | Attacked by the Exiles 3671 | -10/Exiles | Lost 3 allies 3715 | -10/Exiles | Core integrity fell below 20% 3734 | -10/Exiles | Destroyed by 8R-AWN with 8R-AWN's Boregun Last Messages --------------- 03723_ Penetrated by HV Slug. 03723_ HV Slug penetrates Earth. 03725_ Penetrated by HV Slug. 03725_ HV Slug penetrates Earth. 03725_ Penetrated by HV Slug. 03725_ HV Slug penetrates Earth. 03728_ Penetrated by HV Slug. 03728_ HV Slug penetrates Earth. 03728_ Penetrated by HV Slug. 03728_ HV Slug penetrates Earth. 03730_ Penetrated by HV Slug. 03730_ HV Slug penetrates Earth. 03730_ HV Slug penetrates Wall. 03732_ Penetrated by HV Slug. 03732_ HV Slug penetrates Earth. 03732_ Penetrated by HV Slug. 03732_ HV Slug penetrates Earth. 03734_ Penetrated by HV Slug. 03734_ HV Slug penetrates Earth. 03734_ Penetrated by HV Slug. Map ----- +----------------------------------------------------+ | ?????????????????????????????????????????????????? | | ?????????####????????????????????????????????????? | | ????????## #???????????????????????????????????? | | ????????# ???????????????????????????????????? | | ????????# < ???????????????????????????????????? | | ????????# #??????????????????????????????????? | | ????????# ??????????????????????????????????? | | ????????# ??????????????????????????????????? | | ?????????# ??????????????????????????????????? | | ?????????# ##????????????????????????????????? | | ??????????# #????????????#######?????????????? | | ??????????# #######??????#!!! "#?????????????? | | ??????????# #""##?????# "#?????????????? | | ??????????## #?????# "#?????????????? | | ???????????##" ##???## ""#??????????#### | | ???????????#"" #####" ""#??????????# | | ???????????#### ##" ""#??????????#"" | | ??????????????## #"" #????????????#"" | | ???????????????#"## ## ###???????#"" | | ???????????????####### ##??????#"" | | ?????????????????????### #??????# | | ???????????????########" #??????#"" | | ???????????????# !!""""" #???????### | | ???????????????#! g"### = ####???### | | ???????????????#! "#?##" %*=[%=" "#####X# | | ???????????????#! @##??#" !% | | ???????????????# !""""" #;#???#"# * | | ???????????????########## #???#### | | ????????????????????????# #??????### *%= | | ????????????????????????# #????????### = | | ????????????????????????# #??????????## | | ????????????????????????# #???????????## | | ????????????????????????# #????????????##" | | ????????????????????????# #?????????????#""" | | ????????????????????????? ?????????????##" | | ????????????????????????? ?????????????#"" | | ????????????????????????? ?????????????#""" | | ????????????????????????? ?????????????""" | | ????????????????????????? ?????????????""" | | ????????????????????????? ?????????????"" | | ?????????????????????????#?????????????""" | | ???????????????????????????????????????"" | | ???????????????????????????????????????#"" | | ???????????????????????????????????????#"""" | | ????????????????????????????????????????# | | ????????????????????????????????????????#" | | ????????????????????????????????????????#"""" | | ????????????????????????????????????????#"" | | ?????????????????????????????????????????" | | ?????????????????????????????????????????""" | +----------------------------------------------------+ Best States ------------- Heat Dissipation 39 Energy Generation 10 Energy Capacity 250 Matter Stores 446 Matter Capacity 450 Sight Range 16 Terrain Scan Density 10 Evasion (%) 55 Recoil Reduction 2 Item Schematics ----------------- None Robot Schematics ------------------ None Fabricated ------------ Nothing Alien Tech Used ----------------- None Achievements -------------- None Challenges ------------ None Game ------ Seed PotentialMasterInitializer Manual? 0 Play Time 00:11:53 Cumulative 225.2 hours Start 2024.05.17 @ 20:46:59 End 2024.05.17 @ 20:55:51 Sessions 1 Manual Loads 0 Difficulty Rogue Special Mode None Game No. 286 Rogue 286 Adventurer 0 Explorer 0 Win Type - Total 8 Types 4/1/0/1/1/0/0/1/0 Lore% 71 Gallery% 80 Achievement% 69 Wizard Run 0 Options --------- Layout 0 ASCII 0 Keyboard 0 Movement Numpad Keybinds 0 Fullscreen 1 Font 18/SmallcapsGlow Map View 76x50 Zoom Use 0% Tactical HUD 1 Map Filters NONE Filters NONE Steam 1 RUN: 26749059-7cfa-48f5-8024-5dc1c5102768